[Event "Titled Tuesday Blitz April 12 Early 2022"]
[White "Noboa Silva, Kevin"]
[Black "Mekhitarian, Krikor Sevag"]
[WhiteFideId "3618471"]
[BlackFideId "2107660"]
[WhiteElo "2172"]
[BlackElo "2598"]
[Result "0-1"]
[Round "06"]
[TimeControl "180+1"]
[Date "2022.04.13"]
[WhiteClock "0:00:07"]
[BlackClock "0:00:07"]

1. d4 {[%clk 0:02:57]}  Nf6 {[%clk 0:02:58]} 2. c4 {[%clk 0:02:57]}  g6 {[%clk 0:02:58]} 3. Nc3 {[%clk 0:02:51]}  d5 {[%clk 0:02:57]} 4. cxd5 {[%clk 0:02:49]}  Nxd5 {[%clk 0:02:58]} 5. Bd2 {[%clk 0:02:48]}  Bg7 {[%clk 0:02:58]} 6. e4 {[%clk 0:02:48]}  Nb6 {[%clk 0:02:58]} 7. Be3 {[%clk 0:02:47]}  O-O {[%clk 0:02:59]} 8. h3 {[%clk 0:02:46]}  Nc6 {[%clk 0:02:55]} 9. d5 {[%clk 0:02:38]}  Nb8 {[%clk 0:02:55]} 10. a4 {[%clk 0:02:34]}  c6 {[%clk 0:02:54]} 11. a5 {[%clk 0:02:30]}  N6d7 {[%clk 0:02:52]} 12. Nf3 {[%clk 0:02:26]}  cxd5 {[%clk 0:02:50]} 13. exd5 {[%clk 0:02:24]}  Na6 {[%clk 0:02:34]} 14. Bd4 {[%clk 0:02:08]}  Nf6 {[%clk 0:02:27]} 15. Bc4 {[%clk 0:02:02]}  Nc7 {[%clk 0:02:26]} 16. O-O {[%clk 0:01:58]}  Re8 {[%clk 0:02:24]} 17. Re1 {[%clk 0:01:57]}  Bd7 {[%clk 0:02:15]} 18. Qd2 {[%clk 0:01:46]}  Bf5 {[%clk 0:01:24]} 19. Rad1 {[%clk 0:01:32]}  a6 {[%clk 0:00:54]} 20. Be5 {[%clk 0:01:15]}  Rc8 {[%clk 0:00:47]} 21. b3 {[%clk 0:01:10]}  Rf8 {[%clk 0:00:31]} 22. Qd4 {[%clk 0:00:53]}  Nce8 {[%clk 0:00:30]} 23. g4 {[%clk 0:00:46]}  Bd7 {[%clk 0:00:30]} 24. Rc1 {[%clk 0:00:26]}  Nd6 {[%clk 0:00:29]} 25. Nd2 {[%clk 0:00:19]}  h5 {[%clk 0:00:29]} 26. g5 {[%clk 0:00:18]}  Nfe8 {[%clk 0:00:30]} 27. Bd3 {[%clk 0:00:14]}  Bxh3 {[%clk 0:00:26]} 28. Nce4 {[%clk 0:00:10]}  Nf5 {[%clk 0:00:14]} 29. Qb2 {[%clk 0:00:10]}  Rxc1 {[%clk 0:00:12]} 30. Rxc1 {[%clk 0:00:10]}  Ned6 {[%clk 0:00:13]} 31. Bxg7 {[%clk 0:00:10]}  Nxg7 {[%clk 0:00:13]} 32. Rc3 {[%clk 0:00:06]}  Bf5 {[%clk 0:00:12]} 33. Qc1 {[%clk 0:00:04]}  Bxe4 {[%clk 0:00:12]} 34. Nxe4 {[%clk 0:00:04]}  Nxe4 {[%clk 0:00:12]} 35. Bxe4 {[%clk 0:00:05]}  Ne8 {[%clk 0:00:12]} 36. Bg2 {[%clk 0:00:04]}  Nd6 {[%clk 0:00:13]} 37. Rc7 {[%clk 0:00:04]}  Kh7 {[%clk 0:00:05]} 38. Qc5 {[%clk 0:00:04]}  Kg7 {[%clk 0:00:05]} 39. f4 {[%clk 0:00:03]}  Kg8 {[%clk 0:00:05]} 40. Kh2 {[%clk 0:00:03]}  Re8 {[%clk 0:00:05]} 41. Kg3 {[%clk 0:00:03]}  Qb8 {[%clk 0:00:06]} 42. Qb6 {[%clk 0:00:04]}  Rc8 {[%clk 0:00:05]} 43. Rxe7 {[%clk 0:00:03]}  Nf5+ {[%clk 0:00:04]} 44. Kf3 {[%clk 0:00:03]}  Nxe7 {[%clk 0:00:05]} 45. Qf6 {[%clk 0:00:04]}  Nxd5 {[%clk 0:00:03]} 46. Qd4 {[%clk 0:00:04]}  Qxf4+ {[%clk 0:00:02]} 47. Qxf4 {[%clk 0:00:04]}  Rc3+ {[%clk 0:00:02]} 48. Ke4 {[%clk 0:00:03]}  Nxf4 {[%clk 0:00:02]} 49. Kxf4 {[%clk 0:00:04]}  Rxb3 {[%clk 0:00:03]} 50. Ke5 {[%clk 0:00:04]}  Rb5+ {[%clk 0:00:03]} 51. Kd6 {[%clk 0:00:05]}  Rxa5 {[%clk 0:00:03]} 52. Bxb7 {[%clk 0:00:05]}  Rxg5 {[%clk 0:00:03]} 53. Bxa6 {[%clk 0:00:06]}  Kg7 {[%clk 0:00:04]} 54. Bc8 {[%clk 0:00:05]}  h4 {[%clk 0:00:05]} 55. Bh3 {[%clk 0:00:05]}  Rg3 {[%clk 0:00:05]} 56. Bc8 {[%clk 0:00:06]}  h3 {[%clk 0:00:06]} 57. Ke5 {[%clk 0:00:06]}  h2 {[%clk 0:00:06]} 58. Kf4 {[%clk 0:00:07]}  Rg1 {[%clk 0:00:07]} 0-1


[Site "https://www.chess.com"]

[Event "Titled Tuesday Blitz April 12 Early 2022"]
[White "Nozdrachev, Leonid"]
[Black "Bas Mas, Jose Joaquin"]
[WhiteFideId "24113433"]
[BlackFideId "22219064"]
[WhiteElo "2242"]
[BlackElo "2212"]
[Result "0-1"]
[Round "06"]
[TimeControl "180+1"]
[Date "2022.04.13"]
[WhiteClock "0:00:02"]
[BlackClock "0:00:55"]

1. a3 {[%clk 0:02:58]}  e6 {[%clk 0:02:58]} 2. h4 {[%clk 0:02:57]}  d5 {[%clk 0:02:57]} 3. b4 {[%clk 0:02:55]}  a5 {[%clk 0:02:56]} 4. b5 {[%clk 0:02:52]}  a4 {[%clk 0:02:56]} 5. e3 {[%clk 0:02:52]}  Nf6 {[%clk 0:02:53]} 6. Bb2 {[%clk 0:02:51]}  Be7 {[%clk 0:02:52]} 7. g4 {[%clk 0:02:49]}  O-O {[%clk 0:02:44]} 8. g5 {[%clk 0:02:45]}  Nfd7 {[%clk 0:02:41]} 9. g6 {[%clk 0:02:38]}  fxg6 {[%clk 0:02:37]} 10. h5 {[%clk 0:02:37]}  g5 {[%clk 0:02:35]} 11. h6 {[%clk 0:02:35]}  Bf6 {[%clk 0:02:31]} 12. hxg7 {[%clk 0:02:31]}  Bxg7 {[%clk 0:02:23]} 13. Qh5 {[%clk 0:02:22]}  Nf6 {[%clk 0:02:22]} 14. Bxf6 {[%clk 0:02:20]}  Qxf6 {[%clk 0:02:23]} 15. Qxh7+ {[%clk 0:02:19]}  Kf7 {[%clk 0:02:23]} 16. Be2 {[%clk 0:01:29]}  Rh8 {[%clk 0:01:53]} 17. Bh5+ {[%clk 0:01:25]}  Ke7 {[%clk 0:01:52]} 18. Qd3 {[%clk 0:01:16]}  Qxa1 {[%clk 0:01:48]} 19. c3 {[%clk 0:01:16]}  Rh6 {[%clk 0:01:43]} 20. Nf3 {[%clk 0:01:09]}  Nd7 {[%clk 0:01:31]} 21. Ke2 {[%clk 0:01:00]}  Qa2 {[%clk 0:01:23]} 22. Rg1 {[%clk 0:00:15]}  Nc5 {[%clk 0:01:10]} 23. Rxg5 {[%clk 0:00:08]}  Nxd3 {[%clk 0:01:09]} 24. Rxg7+ {[%clk 0:00:07]}  Kd6 {[%clk 0:01:09]} 25. Ng5 {[%clk 0:00:03]}  Rxh5 {[%clk 0:01:01]} 26. Nf7+ {[%clk 0:00:03]}  Kc5 {[%clk 0:01:01]} 27. Kxd3 {[%clk 0:00:03]}  Qxb1+ {[%clk 0:01:00]} 28. Ke2 {[%clk 0:00:02]}  Qxb5+ {[%clk 0:00:59]} 29. d3 {[%clk 0:00:02]}  Qb2+ {[%clk 0:00:58]} 30. Kf3 {[%clk 0:00:02]}  Rf5+ {[%clk 0:00:58]} 31. Kg4 {[%clk 0:00:02]}  Qxf2 {[%clk 0:00:57]} 32. d4+ {[%clk 0:00:02]}  Kb6 {[%clk 0:00:55]} 0-1


[Site "https://www.chess.com"]

[Event "Titled Tuesday Blitz April 12 Early 2022"]
[White "Oganian, Miran"]
[Black "Tasev, Dejan"]
[WhiteFideId "4122488"]
[BlackFideId "936618"]
[WhiteElo "2357"]
[BlackElo "2253"]
[Result "1-0"]
[Round "06"]
[TimeControl "180+1"]
[Date "2022.04.12"]
[WhiteClock "0:00:31"]
[BlackClock "0:00:40"]

1. e4 {[%clk 0:02:59]}  e5 {[%clk 0:02:58]} 2. Nf3 {[%clk 0:02:59]}  Nf6 {[%clk 0:02:57]} 3. Nc3 {[%clk 0:02:59]}  Nc6 {[%clk 0:02:57]} 4. d4 {[%clk 0:03:00]}  exd4 {[%clk 0:02:57]} 5. Nxd4 {[%clk 0:03:00]}  Bc5 {[%clk 0:02:57]} 6. Be3 {[%clk 0:02:59]}  Bb6 {[%clk 0:02:57]} 7. Nxc6 {[%clk 0:02:59]}  bxc6 {[%clk 0:02:56]} 8. Bxb6 {[%clk 0:03:00]}  axb6 {[%clk 0:02:56]} 9. Bd3 {[%clk 0:03:00]}  d6 {[%clk 0:02:55]} 10. O-O {[%clk 0:03:00]}  O-O {[%clk 0:02:55]} 11. h3 {[%clk 0:03:00]}  Re8 {[%clk 0:02:55]} 12. f4 {[%clk 0:03:00]}  Nd7 {[%clk 0:02:53]} 13. Qf3 {[%clk 0:02:59]}  Nc5 {[%clk 0:02:53]} 14. Rae1 {[%clk 0:02:58]}  Nxd3 {[%clk 0:02:44]} 15. cxd3 {[%clk 0:02:58]}  b5 {[%clk 0:02:41]} 16. a3 {[%clk 0:02:50]}  Bd7 {[%clk 0:02:37]} 17. e5 {[%clk 0:02:46]}  Rb8 {[%clk 0:02:19]} 18. d4 {[%clk 0:02:41]}  b4 {[%clk 0:02:16]} 19. Ne4 {[%clk 0:02:41]}  bxa3 {[%clk 0:02:14]} 20. bxa3 {[%clk 0:02:41]}  Bc8 {[%clk 0:01:54]} 21. Kh1 {[%clk 0:02:31]}  Ba6 {[%clk 0:01:53]} 22. Rf2 {[%clk 0:02:30]}  Bc4 {[%clk 0:01:52]} 23. Qg3 {[%clk 0:02:21]}  Kh8 {[%clk 0:01:38]} 24. f5 {[%clk 0:02:12]}  dxe5 {[%clk 0:01:31]} 25. f6 {[%clk 0:02:05]}  g6 {[%clk 0:01:21]} 26. Qg5 {[%clk 0:02:00]}  Rg8 {[%clk 0:01:11]} 27. Qh6 {[%clk 0:01:57]}  Qf8 {[%clk 0:01:10]} 28. Qxf8 {[%clk 0:01:43]}  Rgxf8 {[%clk 0:01:09]} 29. dxe5 {[%clk 0:01:44]}  Rfe8 {[%clk 0:01:04]} 30. Ng5 {[%clk 0:00:45]}  h6 {[%clk 0:01:01]} 31. Rf4 {[%clk 0:00:39]}  hxg5 {[%clk 0:00:52]} 32. Rxc4 {[%clk 0:00:39]}  Re6 {[%clk 0:00:51]} 33. a4 {[%clk 0:00:38]}  Ra8 {[%clk 0:00:44]} 34. h4 {[%clk 0:00:32]}  gxh4 {[%clk 0:00:40]} 35. Rxh4+ {[%clk 0:00:31]}  Kg8 {[%clk 0:00:40]} 36. Re3 {[%clk 0:00:31]} 1-0


[Site "https://www.chess.com"]

[Event "Titled Tuesday Blitz April 12 Early 2022"]
[White "Omelja, Artem"]
[Black "Melikhov, Evgeny V."]
[WhiteFideId "14119846"]
[BlackFideId "4122046"]
[WhiteElo "2382"]
[BlackElo "1931"]
[Result "0-1"]
[Round "06"]
[TimeControl "180+1"]
[Date "2022.04.13"]
[WhiteClock "0:01:07"]
[BlackClock "0:01:53"]

1. d4 {[%clk 0:03:00]}  Nf6 {[%clk 0:02:57]} 2. c4 {[%clk 0:02:59]}  e6 {[%clk 0:02:57]} 3. Nf3 {[%clk 0:02:58]}  d5 {[%clk 0:02:57]} 4. Nc3 {[%clk 0:02:58]}  Bb4 {[%clk 0:02:57]} 5. cxd5 {[%clk 0:02:54]}  exd5 {[%clk 0:02:57]} 6. Qa4+ {[%clk 0:02:53]}  Nc6 {[%clk 0:02:56]} 7. Bg5 {[%clk 0:02:54]}  h6 {[%clk 0:02:56]} 8. Bxf6 {[%clk 0:02:54]}  Qxf6 {[%clk 0:02:56]} 9. e3 {[%clk 0:02:55]}  O-O {[%clk 0:02:54]} 10. Bb5 {[%clk 0:02:53]}  Bg4 {[%clk 0:02:49]} 11. Bxc6 {[%clk 0:02:41]}  Bxc3+ {[%clk 0:02:48]} 12. bxc3 {[%clk 0:02:41]}  Bxf3 {[%clk 0:02:48]} 13. Bxb7 {[%clk 0:02:14]}  Bxg2 {[%clk 0:02:41]} 14. Rg1 {[%clk 0:02:13]}  Rab8 {[%clk 0:02:40]} 15. Qxa7 {[%clk 0:02:06]}  Bf3 {[%clk 0:02:30]} 16. Qa6 {[%clk 0:02:04]}  Qxa6 {[%clk 0:02:17]} 17. Bxa6 {[%clk 0:02:05]}  Rb2 {[%clk 0:02:17]} 18. Rg3 {[%clk 0:02:02]}  Be4 {[%clk 0:02:12]} 19. a4 {[%clk 0:01:51]}  Rfb8 {[%clk 0:02:11]} 20. Bb5 {[%clk 0:01:49]}  Rc2 {[%clk 0:02:09]} 21. Ra3 {[%clk 0:01:45]}  c6 {[%clk 0:02:06]} 22. Rb3 {[%clk 0:01:13]}  cxb5 {[%clk 0:02:05]} 23. axb5 {[%clk 0:01:14]}  Ra8 {[%clk 0:01:59]} 24. Rb1 {[%clk 0:01:13]}  Raa2 {[%clk 0:01:56]} 25. Rd1 {[%clk 0:01:04]}  Re2+ {[%clk 0:01:54]} 26. Kf1 {[%clk 0:01:04]}  Rxf2+ {[%clk 0:01:54]} 27. Kg1 {[%clk 0:01:05]}  Rxh2 {[%clk 0:01:54]} 28. Rg2 {[%clk 0:01:06]}  Raxg2+ {[%clk 0:01:52]} 29. Kf1 {[%clk 0:01:07]}  Rh1# {[%clk 0:01:53]} 0-1


[Site "https://www.chess.com"]

[Event "Titled Tuesday Blitz April 12 Early 2022"]
[White "Palachev, Petr"]
[Black "Zierk, Steven"]
[WhiteFideId "24129003"]
[BlackFideId "2034255"]
[WhiteElo "2339"]
[BlackElo "2494"]
[Result "0-1"]
[Round "06"]
[TimeControl "180+1"]
[Date "2022.04.12"]
[WhiteClock "0:00:01"]
[BlackClock "0:00:09"]

1. d4 {[%clk 0:02:59]}  Nf6 {[%clk 0:02:58]} 2. c4 {[%clk 0:03:00]}  g6 {[%clk 0:02:58]} 3. Nc3 {[%clk 0:02:59]}  Bg7 {[%clk 0:02:59]} 4. e4 {[%clk 0:03:00]}  d6 {[%clk 0:02:58]} 5. Nf3 {[%clk 0:03:00]}  O-O {[%clk 0:02:58]} 6. Be2 {[%clk 0:03:01]}  Nbd7 {[%clk 0:02:57]} 7. O-O {[%clk 0:02:59]}  e5 {[%clk 0:02:58]} 8. Be3 {[%clk 0:02:59]}  Qe7 {[%clk 0:02:57]} 9. Qc2 {[%clk 0:02:54]}  c6 {[%clk 0:02:57]} 10. d5 {[%clk 0:02:48]}  c5 {[%clk 0:02:57]} 11. a3 {[%clk 0:02:48]}  Ng4 {[%clk 0:02:53]} 12. Bg5 {[%clk 0:02:47]}  f6 {[%clk 0:02:54]} 13. Bd2 {[%clk 0:02:48]}  f5 {[%clk 0:02:54]} 14. h3 {[%clk 0:02:33]}  Ngf6 {[%clk 0:02:53]} 15. Bd3 {[%clk 0:02:32]}  fxe4 {[%clk 0:02:49]} 16. Nxe4 {[%clk 0:02:32]}  Nxe4 {[%clk 0:02:50]} 17. Bxe4 {[%clk 0:02:32]}  Nf6 {[%clk 0:02:50]} 18. Bg5 {[%clk 0:02:32]}  Qf7 {[%clk 0:02:42]} 19. Nd2 {[%clk 0:02:26]}  Nxe4 {[%clk 0:02:18]} 20. Nxe4 {[%clk 0:02:27]}  Bf5 {[%clk 0:02:18]} 21. f3 {[%clk 0:02:05]}  h6 {[%clk 0:02:13]} 22. Be3 {[%clk 0:02:02]}  b5 {[%clk 0:02:06]} 23. g4 {[%clk 0:01:58]}  Bxe4 {[%clk 0:02:05]} 24. fxe4 {[%clk 0:01:59]}  Qb7 {[%clk 0:02:04]} 25. Rxf8+ {[%clk 0:01:14]}  Rxf8 {[%clk 0:02:03]} 26. Rf1 {[%clk 0:01:15]}  bxc4 {[%clk 0:01:51]} 27. Rxf8+ {[%clk 0:01:14]}  Bxf8 {[%clk 0:01:51]} 28. Bd2 {[%clk 0:01:03]}  Qa6 {[%clk 0:01:45]} 29. Kg2 {[%clk 0:01:00]}  Kh7 {[%clk 0:01:31]} 30. Bc3 {[%clk 0:00:54]}  Be7 {[%clk 0:01:28]} 31. Qe2 {[%clk 0:00:51]}  Bg5 {[%clk 0:01:19]} 32. Qf2 {[%clk 0:00:47]}  Kg7 {[%clk 0:01:15]} 33. h4 {[%clk 0:00:44]}  Be7 {[%clk 0:01:12]} 34. h5 {[%clk 0:00:43]}  Qc8 {[%clk 0:01:07]} 35. Qf3 {[%clk 0:00:41]}  gxh5 {[%clk 0:01:04]} 36. gxh5 {[%clk 0:00:42]}  Bg5 {[%clk 0:01:03]} 37. Qh3 {[%clk 0:00:36]}  Qe8 {[%clk 0:00:46]} 38. Qg4 {[%clk 0:00:28]}  Kh8 {[%clk 0:00:27]} 39. Qf3 {[%clk 0:00:20]}  Kg8 {[%clk 0:00:25]} 40. Qg4 {[%clk 0:00:18]}  Kh8 {[%clk 0:00:23]} 41. Qf3 {[%clk 0:00:18]}  Qg8 {[%clk 0:00:20]} 42. Kh3 {[%clk 0:00:18]}  Kg7 {[%clk 0:00:15]} 43. Qf5 {[%clk 0:00:15]}  Qe8 {[%clk 0:00:15]} 44. Kg4 {[%clk 0:00:14]}  Bc1 {[%clk 0:00:15]} 45. a4 {[%clk 0:00:10]}  a6 {[%clk 0:00:14]} 46. Qe6 {[%clk 0:00:04]}  Qxe6+ {[%clk 0:00:13]} 47. dxe6 {[%clk 0:00:05]}  Kf6 {[%clk 0:00:14]} 48. e7 {[%clk 0:00:06]}  Kxe7 {[%clk 0:00:13]} 49. Kf5 {[%clk 0:00:07]}  Kf7 {[%clk 0:00:13]} 50. Kg4 {[%clk 0:00:04]}  Ke7 {[%clk 0:00:13]} 51. Kf5 {[%clk 0:00:04]}  Kf7 {[%clk 0:00:14]} 52. Kg4 {[%clk 0:00:04]}  Ke6 {[%clk 0:00:14]} 53. Kh4 {[%clk 0:00:05]}  d5 {[%clk 0:00:14]} 54. exd5+ {[%clk 0:00:06]}  Kxd5 {[%clk 0:00:15]} 55. Kg4 {[%clk 0:00:06]}  Ke4 {[%clk 0:00:14]} 56. a5 {[%clk 0:00:05]}  Be3 {[%clk 0:00:13]} 57. Kg3 {[%clk 0:00:01]}  Bf4+ {[%clk 0:00:09]} 0-1


[Site "https://www.chess.com"]

[Event "Titled Tuesday Blitz April 12 Early 2022"]
[White "Petrova, Irina"]
[Black "Silvestre, Christian"]
[WhiteFideId "14124122"]
[BlackFideId "30956269"]
[WhiteElo "1993"]
[BlackElo "2448"]
[Result "0-1"]
[Round "06"]
[TimeControl "180+1"]
[Date "2022.04.13"]
[WhiteClock "0:00:11"]
[BlackClock "0:00:17"]

1. e4 {[%clk 0:03:00]}  c5 {[%clk 0:02:59]} 2. Nf3 {[%clk 0:02:59]}  Nc6 {[%clk 0:02:48]} 3. Bb5 {[%clk 0:02:59]}  e6 {[%clk 0:02:47]} 4. Bxc6 {[%clk 0:02:57]}  bxc6 {[%clk 0:02:47]} 5. O-O {[%clk 0:02:56]}  d5 {[%clk 0:02:45]} 6. exd5 {[%clk 0:02:54]}  cxd5 {[%clk 0:02:44]} 7. b3 {[%clk 0:02:46]}  Nf6 {[%clk 0:02:43]} 8. Bb2 {[%clk 0:02:46]}  Be7 {[%clk 0:02:43]} 9. d3 {[%clk 0:02:42]}  O-O {[%clk 0:02:43]} 10. Nbd2 {[%clk 0:02:39]}  a5 {[%clk 0:02:43]} 11. c4 {[%clk 0:02:34]}  a4 {[%clk 0:02:41]} 12. bxa4 {[%clk 0:02:26]}  Bd7 {[%clk 0:02:40]} 13. Nb3 {[%clk 0:02:20]}  Bxa4 {[%clk 0:02:38]} 14. Ne5 {[%clk 0:02:14]}  Qc7 {[%clk 0:02:21]} 15. Qf3 {[%clk 0:02:09]}  d4 {[%clk 0:02:06]} 16. Ng4 {[%clk 0:01:48]}  Nxg4 {[%clk 0:01:46]} 17. Qxg4 {[%clk 0:01:49]}  f5 {[%clk 0:01:42]} 18. Qe2 {[%clk 0:01:48]}  e5 {[%clk 0:01:26]} 19. Rfe1 {[%clk 0:01:42]}  Bd6 {[%clk 0:01:25]} 20. Rab1 {[%clk 0:01:21]}  Rae8 {[%clk 0:01:22]} 21. Bc1 {[%clk 0:01:19]}  e4 {[%clk 0:01:19]} 22. g3 {[%clk 0:01:12]}  exd3 {[%clk 0:01:17]} 23. Qf1 {[%clk 0:01:10]}  Rxe1 {[%clk 0:01:06]} 24. Qxe1 {[%clk 0:01:11]}  Re8 {[%clk 0:01:05]} 25. Qd1 {[%clk 0:01:10]}  Bc6 {[%clk 0:01:02]} 26. Ba3 {[%clk 0:01:01]}  Ba8 {[%clk 0:00:46]} 27. Nd2 {[%clk 0:00:55]}  Qc6 {[%clk 0:00:44]} 28. f3 {[%clk 0:00:55]}  Re2 {[%clk 0:00:39]} 29. Rb2 {[%clk 0:00:46]}  Qc7 {[%clk 0:00:30]} 30. Qa4 {[%clk 0:00:37]}  Bc6 {[%clk 0:00:24]} 31. Rb8+ {[%clk 0:00:13]}  Qxb8 {[%clk 0:00:22]} 32. Qxc6 {[%clk 0:00:13]}  Rxd2 {[%clk 0:00:19]} 33. Qd5+ {[%clk 0:00:13]}  Kh8 {[%clk 0:00:19]} 34. Bc1 {[%clk 0:00:12]}  Rd1+ {[%clk 0:00:18]} 35. Kg2 {[%clk 0:00:12]}  Rxc1 {[%clk 0:00:19]} 36. Qxf5 {[%clk 0:00:11]}  d2 {[%clk 0:00:17]} 0-1


[Site "https://www.chess.com"]

[Event "Titled Tuesday Blitz April 12 Early 2022"]
[White "Pichot, Alan"]
[Black "Potapova, Margarita"]
[WhiteFideId "110973"]
[BlackFideId "14126869"]
[WhiteElo "2579"]
[BlackElo "2216"]
[Result "1-0"]
[Round "06"]
[TimeControl "180+1"]
[Date "2022.04.12"]
[WhiteClock "0:01:51"]
[BlackClock "0:00:03"]

1. e4 {[%clk 0:02:53]}  c5 {[%clk 0:02:59]} 2. Nf3 {[%clk 0:02:53]}  d6 {[%clk 0:03:00]} 3. d4 {[%clk 0:02:54]}  cxd4 {[%clk 0:03:01]} 4. Nxd4 {[%clk 0:02:55]}  Nf6 {[%clk 0:03:01]} 5. Nc3 {[%clk 0:02:55]}  a6 {[%clk 0:03:02]} 6. Bg5 {[%clk 0:02:56]}  e6 {[%clk 0:03:02]} 7. f4 {[%clk 0:02:56]}  h6 {[%clk 0:03:03]} 8. Bh4 {[%clk 0:02:56]}  Qb6 {[%clk 0:03:03]} 9. a3 {[%clk 0:02:57]}  Be7 {[%clk 0:03:02]} 10. Bf2 {[%clk 0:02:57]}  Qc7 {[%clk 0:03:03]} 11. Qf3 {[%clk 0:02:57]}  b5 {[%clk 0:03:04]} 12. O-O-O {[%clk 0:02:58]}  Bb7 {[%clk 0:03:04]} 13. g4 {[%clk 0:02:58]}  Nbd7 {[%clk 0:02:57]} 14. h4 {[%clk 0:02:56]}  Nc5 {[%clk 0:02:47]} 15. Bd3 {[%clk 0:02:55]}  h5 {[%clk 0:02:39]} 16. g5 {[%clk 0:02:54]}  Ng4 {[%clk 0:02:39]} 17. Bg3 {[%clk 0:02:52]}  O-O-O {[%clk 0:02:35]} 18. Rhe1 {[%clk 0:02:50]}  Kb8 {[%clk 0:02:34]} 19. Bf1 {[%clk 0:02:48]}  g6 {[%clk 0:02:09]} 20. Kb1 {[%clk 0:02:46]}  Ka8 {[%clk 0:02:07]} 21. Qe2 {[%clk 0:02:32]}  e5 {[%clk 0:01:57]} 22. Nb3 {[%clk 0:02:24]}  exf4 {[%clk 0:01:34]} 23. Bxf4 {[%clk 0:02:22]}  Ne6 {[%clk 0:01:34]} 24. Bg3 {[%clk 0:02:21]}  Bf8 {[%clk 0:01:22]} 25. Nd5 {[%clk 0:02:20]}  Bxd5 {[%clk 0:01:18]} 26. exd5 {[%clk 0:02:20]}  Nc5 {[%clk 0:01:18]} 27. Nd4 {[%clk 0:02:13]}  Bg7 {[%clk 0:01:04]} 28. c3 {[%clk 0:02:14]}  Ne5 {[%clk 0:01:01]} 29. Nc6 {[%clk 0:02:12]}  Nxc6 {[%clk 0:00:51]} 30. dxc6 {[%clk 0:02:13]}  Qxc6 {[%clk 0:00:52]} 31. Bxd6 {[%clk 0:01:57]}  Nb7 {[%clk 0:00:38]} 32. Bg2 {[%clk 0:01:55]}  Qb6 {[%clk 0:00:35]} 33. Qe7 {[%clk 0:01:53]}  Ka7 {[%clk 0:00:03]} 34. Bc5 {[%clk 0:01:51]} 1-0


[Site "https://www.chess.com"]

[Event "Titled Tuesday Blitz April 12 Early 2022"]
[White "Pranav, V"]
[Black "Gunina, Valentina"]
[WhiteFideId "25060783"]
[BlackFideId "4167570"]
[WhiteElo "2349"]
[BlackElo "2381"]
[Result "0-1"]
[Round "06"]
[TimeControl "180+1"]
[Date "2022.04.12"]
[WhiteClock "0:00:04"]
[BlackClock "0:00:12"]

1. e4 {[%clk 0:03:00]}  c6 {[%clk 0:03:00]} 2. d4 {[%clk 0:02:59]}  d5 {[%clk 0:03:00]} 3. e5 {[%clk 0:03:00]}  c5 {[%clk 0:03:01]} 4. Nf3 {[%clk 0:02:58]}  cxd4 {[%clk 0:03:00]} 5. Qxd4 {[%clk 0:02:59]}  Nc6 {[%clk 0:03:00]} 6. Qf4 {[%clk 0:02:59]}  e6 {[%clk 0:02:58]} 7. Nc3 {[%clk 0:02:58]}  f6 {[%clk 0:02:50]} 8. Bb5 {[%clk 0:02:54]}  Qc7 {[%clk 0:02:30]} 9. O-O {[%clk 0:02:51]}  fxe5 {[%clk 0:02:30]} 10. Qxe5 {[%clk 0:02:48]}  Bd6 {[%clk 0:02:28]} 11. Qh5+ {[%clk 0:02:19]}  g6 {[%clk 0:02:19]} 12. Qh4 {[%clk 0:02:17]}  Ne7 {[%clk 0:02:19]} 13. Bd3 {[%clk 0:02:12]}  a6 {[%clk 0:02:17]} 14. Bg5 {[%clk 0:02:06]}  Bd7 {[%clk 0:02:16]} 15. a3 {[%clk 0:01:53]}  O-O-O {[%clk 0:02:15]} 16. b4 {[%clk 0:01:50]}  h6 {[%clk 0:02:09]} 17. Bf6 {[%clk 0:01:25]}  Rhf8 {[%clk 0:01:50]} 18. b5 {[%clk 0:01:24]}  g5 {[%clk 0:01:32]} 19. Qxh6 {[%clk 0:01:22]}  Ng8 {[%clk 0:01:32]} 20. Bxd8 {[%clk 0:01:21]}  Nxd8 {[%clk 0:01:28]} 21. Qg7 {[%clk 0:01:04]}  g4 {[%clk 0:01:24]} 22. Ne5 {[%clk 0:00:57]}  Nf6 {[%clk 0:01:08]} 23. b6 {[%clk 0:00:40]}  Qxb6 {[%clk 0:00:55]} 24. Nxd7 {[%clk 0:00:36]}  Nxd7 {[%clk 0:00:55]} 25. Qxg4 {[%clk 0:00:26]}  Qc7 {[%clk 0:00:52]} 26. Nxd5 {[%clk 0:00:18]}  exd5 {[%clk 0:00:52]} 27. h4 {[%clk 0:00:18]}  Kb8 {[%clk 0:00:51]} 28. Be2 {[%clk 0:00:13]}  Nf6 {[%clk 0:00:47]} 29. Qg5 {[%clk 0:00:09]}  Ne4 {[%clk 0:00:43]} 30. Qxd5 {[%clk 0:00:07]}  Bh2+ {[%clk 0:00:43]} 31. Kh1 {[%clk 0:00:08]}  Nxf2+ {[%clk 0:00:44]} 32. Rxf2 {[%clk 0:00:07]}  Rxf2 {[%clk 0:00:44]} 33. Bf3 {[%clk 0:00:07]}  Bg3 {[%clk 0:00:25]} 34. Rd1 {[%clk 0:00:06]}  Bxh4 {[%clk 0:00:24]} 35. Qd4 {[%clk 0:00:06]}  Qh7 {[%clk 0:00:18]} 36. Qf4+ {[%clk 0:00:04]}  Ka8 {[%clk 0:00:17]} 37. Kg1 {[%clk 0:00:04]}  Rxc2 {[%clk 0:00:13]} 38. Rd6 {[%clk 0:00:04]}  Bf2+ {[%clk 0:00:12]} 39. Kf1 {[%clk 0:00:04]}  Qh1# {[%clk 0:00:12]} 0-1


[Site "https://www.chess.com"]

[Event "Titled Tuesday Blitz April 12 Early 2022"]
[White "Roebers, Jan"]
[Black "Bettalli, Francesco"]
[WhiteFideId "1007815"]
[BlackFideId "2816453"]
[WhiteElo "2162"]
[BlackElo "2216"]
[Result "0-1"]
[Round "06"]
[TimeControl "180+1"]
[Date "2022.04.13"]
[WhiteClock "0:00:50"]
[BlackClock "0:02:18"]

1. e4 {[%clk 0:03:00]}  e5 {[%clk 0:02:59]} 2. Nf3 {[%clk 0:02:59]}  Nf6 {[%clk 0:03:00]} 3. Nxe5 {[%clk 0:02:57]}  Nc6 {[%clk 0:03:00]} 4. Nxc6 {[%clk 0:02:56]}  dxc6 {[%clk 0:03:01]} 5. e5 {[%clk 0:02:56]}  Ne4 {[%clk 0:03:01]} 6. d3 {[%clk 0:02:54]}  Nc5 {[%clk 0:02:56]} 7. Be2 {[%clk 0:02:52]}  Qd4 {[%clk 0:02:54]} 8. Be3 {[%clk 0:02:48]}  Qb4+ {[%clk 0:02:54]} 9. c3 {[%clk 0:02:46]}  Qxb2 {[%clk 0:02:54]} 10. Nd2 {[%clk 0:02:45]}  Qxc3 {[%clk 0:02:51]} 11. O-O {[%clk 0:02:43]}  Ne6 {[%clk 0:02:46]} 12. Ne4 {[%clk 0:02:36]}  Qxe5 {[%clk 0:02:43]} 13. f4 {[%clk 0:02:36]}  Qd5 {[%clk 0:02:42]} 14. f5 {[%clk 0:02:34]}  Nd4 {[%clk 0:02:42]} 15. f6 {[%clk 0:02:32]}  g6 {[%clk 0:02:40]} 16. Bf3 {[%clk 0:02:23]}  Nxf3+ {[%clk 0:02:39]} 17. Qxf3 {[%clk 0:02:22]}  Be6 {[%clk 0:02:39]} 18. a4 {[%clk 0:02:18]}  Bd6 {[%clk 0:02:37]} 19. Nxd6+ {[%clk 0:02:10]}  cxd6 {[%clk 0:02:38]} 20. Qf4 {[%clk 0:02:03]}  Kd7 {[%clk 0:02:31]} 21. Rfb1 {[%clk 0:01:57]}  c5 {[%clk 0:02:31]} 22. a5 {[%clk 0:01:54]}  Rhe8 {[%clk 0:02:29]} 23. d4 {[%clk 0:01:49]}  c4 {[%clk 0:02:29]} 24. Rb4 {[%clk 0:01:40]}  Rac8 {[%clk 0:02:27]} 25. Rab1 {[%clk 0:01:39]}  Rc7 {[%clk 0:02:28]} 26. Qg3 {[%clk 0:01:30]}  Bf5 {[%clk 0:02:25]} 27. Rd1 {[%clk 0:01:22]}  c3 {[%clk 0:02:25]} 28. Bf4 {[%clk 0:01:20]}  c2 {[%clk 0:02:25]} 29. Rc1 {[%clk 0:01:20]}  Re4 {[%clk 0:02:20]} 30. h3 {[%clk 0:01:16]}  Rxd4 {[%clk 0:02:20]} 31. Rxd4 {[%clk 0:01:12]}  Qxd4+ {[%clk 0:02:21]} 32. Kh2 {[%clk 0:01:10]}  Rc3 {[%clk 0:02:21]} 33. Qe1 {[%clk 0:01:00]}  Qxf4+ {[%clk 0:02:21]} 34. g3 {[%clk 0:01:00]}  Rxg3 {[%clk 0:02:20]} 35. Qe7+ {[%clk 0:00:59]}  Kc6 {[%clk 0:02:20]} 36. Qe8+ {[%clk 0:00:58]}  Kd5 {[%clk 0:02:20]} 37. Qb5+ {[%clk 0:00:56]}  Ke6 {[%clk 0:02:18]} 38. Qb3+ {[%clk 0:00:50]}  Rxb3+ {[%clk 0:02:18]} 0-1


[Site "https://www.chess.com"]